Cogmind - Beta 13 @@@ ROGUE MODE // 2024.04.06 @ 17:01:22 Player: graour Result: Destroyed by G-47 Trooper with Particle Gun Performance ------------- Evolutions (2) 1000 Regions Visited (5) 1000 Robots Destroyed (39) 195 Value Destroyed (844) 844 Prototype IDs (24) 480 Alien Tech Used (0) 0 Bonus (353) 353 TOTAL SCORE: 3872 Bonus ------- High Alert Combat Kills 28 Follower Combat Kills 25 Aligned with FarCom 300 Cogmind --------- Core Integrity 0/550 Matter 217/300 Energy 100/100 System Corruption 0% Temperature Cool (9) Movement Walking (90) Location -8/Materials Parts ------- > --- POWER (2) -------- (None) > --- PROPULSION (3) --- Advanced Treads VSS Leg > --- UTILITY (4) ------ Small Storage Unit Improved Sensor Array > --- WEAPON (2) ------- Light Assault Rifle Welding Torch > --- INVENTORY (8) ---- (None) Peak State ------------ > --- POWER ------------ Ion Engine Ion Engine > --- PROPULSION ------- Improved VTOL Module Improved VTOL Module Improved VTOL Module > --- UTILITY ---------- Small Storage Unit Visual Processing Unit Improved Sensor Array Particle Charger > --- WEAPON ----------- YOLO Cannon > --- INVENTORY -------- Advanced Treads Aluminum Leg Huge Storage Unit Structural Scanner Tractor Beam Small Laser Light Assault Rifle Welding Torch [Rating: 44] Favorites ----------- Power Ion Engine Engine Ion Engine Power Core Light Nuclear Core Propulsion Aluminum Leg Treads Advanced Treads Leg Aluminum Leg Flight Unit Improved VTOL Module Utility Small Storage Unit Device Structural Scanner Storage Small Storage Unit Processor Visual Processing Unit Protection Improved Light Armor Plating Weapon YOLO Cannon Energy Gun Small Laser Energy Cannon YOLO Cannon Ballistic Gun Assault Rifle Ballistic Cannon Assault Cannon Special Weapon Welding Torch Build | -11 -10 -10 -10 -9 -8 ------- Run | Yrd Mat Min Exi Min Mat Slots Evolved 4 | . . . . . 4 Power 1 | . . . . . 1 Propulsion 1 | . . . . . 1 Utility 2 | . . . . . 2 Weapon . | . . . . . . Parts Attached 55 | 7 5 7 1 1 34 Power 10 | 1 . 1 . 1 7 Engine 9 | 1 . . . 1 7 Core 1 | . . 1 . . . Reactor . | . . . . . . Propulsion 21 | 2 1 2 . . 16 Treads 2 | . . . . . 2 Leg 16 | 2 1 2 . . 11 Wheel . | . . . . . . Hover . | . . . . . . Flight 3 | . . . . . 3 Utility 13 | 2 4 . . . 7 Device 8 | 1 1 . . . 6 Storage 3 | 1 2 . . . . Processor 1 | . 1 . . . . Hackware . | . . . . . . Protection 1 | . . . . . 1 Artifact . | . . . . . . Weapon 11 | 2 . 4 1 . 4 Energy Gun 1 | . . 1 . . . Energy Cannon 2 | . . . 1 . 1 Ballistic Gun 5 | 2 . 2 . . 1 Ballistic Cannon 1 | . . . . . 1 Launcher . | . . . . . . Special Weapon 2 | . . 1 . . 1 Impact Weapon . | . . . . . . Slashing Weapon . | . . . . . . Piercing Weapon . | . . . . . . Special Melee Weapon . | . . . . . . Unidentified Prototypes 2 | . . . 1 . 1 Parts Lost 27 | . . 4 . 1 22 Power 9 | . . . . 1 8 Propulsion 8 | . . 2 . . 6 Utility 5 | . . . . . 5 Weapon 5 | . . 2 . . 3 Highest Loss Streak 15 | . . 4 . 1 15 To Critical Strikes . | . . . . . . Average Slot Usage (%) 85 | . 100 98 90 82 75 Engine 8 | . 14 2 . . 13 Core 5 | . . 11 14 11 . Leg 23 | . 28 26 28 28 18 Device 9 | . 9 . . . 17 Storage 11 | . 14 14 14 14 9 Processor 8 | . 4 14 14 14 3 Energy Gun 2 | . . 10 5 . . Energy Cannon 6 | . . . 8 14 8 Ballistic Gun 6 | . 28 16 5 . . Naked Turns . | . . . . . . Heaviest Build 38 | 15 15 14 28 28 38 Greatest Support 44 | 20 20 20 20 20 44 Greatest Overweight (x) 12 | . . 1 1 1 12 Average Overweight (x) . | . . . . 1 1 Largest Inventory Capacity 25 | 8 25 8 8 8 8 Average Capacity 7 | 6 8 8 8 8 8 Most Carried 8 | 2 7 8 8 8 8 Average Carried 6 | 1 5 6 7 7 6 Final Capacity 8 | 8 8 8 8 8 8 Final Carried 8 | 2 7 7 8 7 . Class Distribution -------------------- 57% | Mutant 42% | Skirmisher Dominant Class ---------------- Mutant | -10/Materials Mutant | -10/Mines Mutant | -10/Exiles Mutant | -9/Mines Skirmisher | -8/Materials Resources | -11 -10 -10 -10 -9 -8 ----------- Run | Yrd Mat Min Exi Min Mat Matter Collected 751 | 318 . 111 . 29 293 Remotely 282 | 217 . . . . 65 Salvage Created 899 | 92 . 157 . 64 586 Parts 70 | 1 . 16 . 5 48 Haulers Intercepted . | . . . . . . Recyclers Shooed 1 | . . . . 1 . Parts Field Recycled . | . . . . . . Retrieved Matter . | . . . . . . Parts Self-Destructed . | . . . . . . Prevented . | . . . . . . Kills | -11 -10 -10 -10 -9 -8 ------- Run | Yrd Mat Min Exi Min Mat Combat Hostiles Destroyed 26 | . . 5 . 2 19 Guns 7 | . . 5 . . 2 Cannons 11 | . . . . . 11 AOE 7 | . . . . 2 5 Classes Destroyed 12 | 1 . 4 . 1 6 Worker 3 | . . 1 . . 2 Builder 5 | . . . . . 5 Tunneler 1 | . . 1 . . . Recycler 2 | 1 . . . . 1 Operator 1 | . . . . . 1 Watcher 1 | . . . . . 1 Swarmer 14 | . . 3 . . 11 Grunt 6 | . . 2 . . 4 Brawler 1 | . . . . . 1 Sentry 2 | . . . . . 2 Demolisher 2 | . . . . 2 . Hunter 1 | . . . . . 1 Best Kill Streak 6 | 1 . 6 . 2 5 Combat Bots Only 5 | . . 3 . 2 5 Max Kills in Single Turn 4 | 1 . 1 . 1 4 Gunslinging . | . . . . . . Exploded 1 | . . . . 1 1 Melee . | . . . . . . Uniques/NPCs Destroyed . | . . . . . . Combat | -11 -10 -10 -10 -9 -8 -------- Run | Yrd Mat Min Exi Min Mat Hostile Shots Fired 321 | . . 106 . 2 213 Missed 68 | . . 25 . . 43 Damage Taken 3388 | . 24 826 . 102 2436 Core 770 | . . 204 . 16 550 Absorbed by Shields . | . . . . . . Core Remaining (%) 56 | 100 . . . 12 . Volleys Fired 92 | 8 . 31 . 2 51 Largest 2 | 2 . 2 . 1 2 Hottest 104 | 40 . 60 . 100 104 Shots Fired 148 | 16 . 62 . 2 68 Gun 83 | 16 . 54 . . 13 Cannon 55 | . . . . 2 53 Launcher . | . . . . . . Special 10 | . . 8 . . 2 Kinetic 84 | 16 . 39 . . 29 Thermal 64 | . . 23 . 2 39 Explosive . | . . . . . . Electromagnetic . | . . . . . . Robot Hit Streak 7 | 3 . 4 . 5 7 Robot Miss Streak 4 | 2 . 4 . 1 4 Penetration Max . | . . . . . . Secondary Targets 2 | . . 2 . . . Max Gunslinging Chain 1 | . . 1 . . . Shots Hit Robots 81 | 9 . 34 . 1 37 Core Hits 44 | 2 1 11 . 3 27 Critical Kills 1 | . . . . . 1 Critical Parts Destroyed . | . . . . . . Critical Strikes 2 | . . . . . 2 Meltdown 1 | . . . . . 1 Blast 1 | . . . . . 1 Melee Attacks . | . . . . . . Impact . | . . . . . . Slashing . | . . . . . . Piercing . | . . . . . . Sneak Attacks . | . . . . . . Combat Hostiles . | . . . . . . Follow-up Attacks . | . . . . . . Damage Inflicted 3360 | 111 29 464 . 290 2466 Guns 598 | 111 . 423 . . 64 Cannons 1317 | . . . . 81 1236 Explosions 1355 | . . . . 203 1152 Melee . | . . . . . . Ramming 68 | . 29 21 . 6 12 Kinetic 703 | 111 . 303 . . 289 Thermal 2589 | . . 140 . 284 2165 Explosive . | . . . . . . Electromagnetic . | . . . . . . Impact . | . . . . . . Slashing . | . . . . . . Piercing . | . . . . . . Highest Corruption . | . . . . . . Average Corruption . | . . . . . . Corruption Purged . | . . . . . . Corruption Blocked . | . . . . . . Overload Shots . | . . . . . . Overflow Damage 484 | . . . . 31 453 Projectiles 327 | . . . . 31 296 Explosions 157 | . . . . . 157 Melee . | . . . . . . Knockbacks 4 | . . 2 . . 2 Impact 3 | . . 2 . . 1 Kinetic 1 | . . . . . 1 Secondary . | . . . . . . Self-Inflicted Damage 283 | . . . . . 283 Shots 5 | . . . . . 5 Rammed 3 | . . . . . 3 Targets Rammed 17 | . 5 3 . 2 7 Kicked 14 | . 5 3 . 2 4 Crushed . | . . . . . . Highest Temperature 596 | . . 132 . 7 596 Average Temperature 141 | . . 52 . 7 182 Received Heat Transfer 996 | . . 303 . . 693 Effects 25 | . . . . . 25 Shutdowns 11 | . . . . . 11 Energy Bleed 2 | . . . . . 2 Interference 6 | . . . . . 6 Matter Decay 1 | . . . . . 1 Damage (minor) 2 | . . . . . 2 Damage (major) 1 | . . . . . 1 Damage (core) 2 | . . . . . 2 Siege Activations . | . . . . . . Robots Corrupted . | . . . . . . Combat Hostiles . | . . . . . . Parts Fried . | . . . . . . Impact Corruptions . | . . . . . . Robots Melted 1 | . . . . . 1 Combat Hostiles 1 | . . . . . 1 Parts Melted 7 | . . . . 2 5 Heat Transferred 3011 | . . 425 . 240 2346 Parts Sabotaged . | . . . . . . Parts Stolen . | . . . . . . Parts Stripped . | . . . . . . Power Chain Reactions . | . . . . . . Alert | -11 -10 -10 -10 -9 -8 ------- Run | Yrd Mat Min Exi Min Mat Peak Influence 491 | 5 12 94 . 63 491 Initial 24 | . 3 4 . . 24 Average 88 | 3 4 58 . 13 145 Maximum Alert Level 2 | . . . . . 2 Low Security (%) 87 | 100 100 100 . 100 76 Level 1 5 | . . . . . 10 Level 2 6 | . . . . . 13 Level 3 . | . . . . . . Level 4 . | . . . . . . Level 5 . | . . . . . . High Security . | . . . . . . Max Security . | . . . . . . Squads Dispatched 1 | . . . . . 1 Investigation . | . . . . . . Extermination . | . . . . . . Reinforcement 1 | . . . . . 1 Assault . | . . . . . . Garrison . | . . . . . . Intercept . | . . . . . . Searches Triggered . | . . . . . . Construction Impeded 1 | . . . . . 1 Haulers Reinforced . | . . . . . . Active Scanning Responses . | . . . . . . Cargo Convoy Interrupts . | . . . . . . Stealth | -11 -10 -10 -10 -9 -8 --------- Run | Yrd Mat Min Exi Min Mat Distress Signals 1 | . . . . . 1 Communications Jammed . | . . . . . . Distress Signals . | . . . . . . Times Spotted 38 | . . 5 . 8 25 Peak Tracking Total 7 | . . 5 . 7 7 Tactical Retreats 2 | . . . . 1 1 Traps | -11 -10 -10 -10 -9 -8 ------- Run | Yrd Mat Min Exi Min Mat Traps Triggered 1 | . 1 . . . . Indirectly . | . . . . . . Trap Hack Attempts . | . . . . . . Triggered . | . . . . . . Disarmed . | . . . . . . Reprogrammed . | . . . . . . Reused . | . . . . . . Traps Extracted . | . . . . . . Installed . | . . . . . . Triggered . | . . . . . . Machines | -11 -10 -10 -10 -9 -8 ---------- Run | Yrd Mat Min Exi Min Mat Machines Disabled 6 | . . . . . 6 Max in Single Turn 1 | . . . . . 1 Machines Repaired . | . . . . . . Machines Dismantled . | . . . . . . Machines Sabotaged . | . . . . . . Overloaded Fab Kills . | . . . . . . Hacking | -11 -10 -10 -10 -9 -8 --------- Run | Yrd Mat Min Exi Min Mat Machines Accessed 6 | . 2 . 3 . 1 Terminals 3 | . 2 . . . 1 Fabricators . | . . . . . . Repair Stations . | . . . . . . Recycling Units . | . . . . . . Scanalyzers . | . . . . . . Garrison Access . | . . . . . . Total Hacks 24 | . 4 . 18 . 2 Successful 19 | . 1 . 18 . . Failed 5 | . 3 . . . 2 Catastrophic . | . . . . . . Database Lockouts . | . . . . . . Manual 7 | . 4 . 1 . 2 Terminals 6 | . 4 . . . 2 Fabricators . | . . . . . . Repair Stations . | . . . . . . Recycling Units . | . . . . . . Scanalyzers . | . . . . . . Garrison Access . | . . . . . . Terminal Hacks 19 | . 1 . 18 . . Record 17 | . . . 17 . . Level Access Points 1 | . 1 . . . . Derelict Proto ID Bank 1 | . . . 1 . . Fabricator Hacks . | . . . . . . Repair Station Hacks . | . . . . . . Recycling Unit Hacks . | . . . . . . Scanalyzer . | . . . . . . Garrison Access Hacks . | . . . . . . Unauthorized Hacks . | . . . . . . Terminals . | . . . . . . Fabricators . | . . . . . . Repair Stations . | . . . . . . Recycling Units . | . . . . . . Scanalyzers . | . . . . . . Garrison Access . | . . . . . . Data Cores Recovered . | . . . . . . Used . | . . . . . . Hacking Detections 3 | . 2 . . . 1 Full Trace Events . | . . . . . . Feedback Events . | . . . . . . Feedback Blocked . | . . . . . . Robot Schematics Acquired . | . . . . . . Robots Built . | . . . . . . Authchips . | . . . . . . Time . | . . . . . . Total Robot Build Rating . | . . . . . . Part Schematics Acquired . | . . . . . . Parts Built . | . . . . . . Authchips . | . . . . . . Time . | . . . . . . Total Part Build Rating . | . . . . . . Parts Repaired . | . . . . . . Time . | . . . . . . Parts Recycled . | . . . . . . Recycled Matter . | . . . . . . Retrieved Matter . | . . . . . . Retrieved Components . | . . . . . . Parts Scanalyzed . | . . . . . . Part Schematics Acquired . | . . . . . . Parts Damaged . | . . . . . . Bothacking | -11 -10 -10 -10 -9 -8 ------------ Run | Yrd Mat Min Exi Min Mat Used RIF Installer . | . . . . . . Robots Hacked . | . . . . . . Non-combat . | . . . . . . Combat . | . . . . . . Robot Hacks Applied . | . . . . . . Relay Couplers Released . | . . . . . . Fabnet Peak Effective % . | . . . . . . Robots Rewired . | . . . . . . Allies Hacked . | . . . . . . Hacks Repelled . | . . . . . . Allies | -11 -10 -10 -10 -9 -8 -------- Run | Yrd Mat Min Exi Min Mat Total Allies 3 | . . 3 . . . Largest Group 3 | . . 3 3 . . Highest-Rated Group 40 | . . 40 40 . . Highest-Rated Ally 16 | . . 16 16 . . Total Orders . | . . . . . . Ally Attacks 12 | . . . 12 . . Total Damage 107 | . . . 107 . . Kills 1 | . . . 1 . . Allies Corrupted . | . . . . . . Allies Melted . | . . . . . . Intel | -11 -10 -10 -10 -9 -8 ------- Run | Yrd Mat Min Exi Min Mat Robot Analysis Total . | . . . . . . Derelict Logs Recovered 3 | . . 2 . 1 . Drone Launches . | . . . . . . Drone Recoveries . | . . . . . . Exploration | -11 -10 -10 -10 -9 -8 ------------- Run | Yrd Mat Min Exi Min Mat Turns Passed 2742 | 124 294 463 402 255 1204 Spaces Moved 1422 | 75 233 294 259 128 433 Core 16 | 3 . . . . 13 Treads 34 | . . . . . 34 Legs 1362 | 72 233 294 259 128 376 Wheels . | . . . . . . Hover . | . . . . . . Flight 10 | . . . . . 10 Fastest Speed 50 | 50 120 120 120 190 90 Average Speed 152 | 117 120 120 154 190 184 Slowest Speed 650 | 120 120 190 190 190 650 Overloaded Moves . | . . . . . . Propulsion Burnouts . | . . . . . . Robots Hopped . | . . . . . . Cave-ins Triggered . | . . . . . . Exploration Rate (%) 35 | 5 34 60 63 17 32 Regions Visited 5 Branch Regions 3 Pre-discovered Areas 2 | . . 1 . 1 . Known Exits Taken . | . . . . . . Unknown Exits Taken 5 | 1 1 1 1 1 . Scrap Searched . | . . . . . . Spaces Dug . | . . . . . . Terrain Destroyed 307 | . . . . 27 280 Melee . | . . . . . . Projectile 11 | . . . . 1 10 AOE 296 | . . . . 26 270 Terrain Rammed . | . . . . . . Walls Destroyed . | . . . . . . Machines Disabled . | . . . . . . Actions | -11 -10 -10 -10 -9 -8 --------- Run | Yrd Mat Min Exi Min Mat Total 1783 | 91 245 335 261 132 719 Wait 179 | . . . . . 179 Move 1417 | 74 232 293 258 127 433 Hop . | . . . . . . Pick Up 6 | 2 1 . . . 3 Fast Attach 30 | 7 2 2 1 . 18 Attach 17 | . . 3 . 1 13 Detach 8 | . 2 1 1 . 4 Swap 8 | . 3 2 . . 3 Drop 9 | . . . 1 . 8 Fire 92 | 8 . 31 . 2 51 Melee . | . . . . . . Ram 3 | . . . . . 3 Kick 14 | . 5 3 . 2 4 Crush . | . . . . . . Escape Stasis . | . . . . . . Rewire . | . . . . . . Trap . | . . . . . . Miscellaneous . | . . . . . . Route ------- -11/Scrapyard -10/Materials (discovered 4 exits: *Mat x3 / [*Min]) -10/Mines (discovered 2 exits: *Mat / *Exi) -10/Exiles (discovered 2 exits: [*Min x2]) -9/Mines (discovered 2 exits: *Mat x2) -8/Materials History --------- Turn | Location | Event 38 | -11/Scrapyard | Discovered new exit (range 15) 125 | -11/Scrapyard | Entered Materials 280 | -10/Materials | Discovered new exit (range 7) 304 | -10/Materials | Build established: Mutant 349 | -10/Materials | Discovered new exit (range 6) 377 | -10/Materials | Identified exit to Materials 419 | -10/Materials | Entered Mines 440 | -10/Mines | Found a hidden stash of uninstalled traps 449 | -10/Mines | Learned location of Zion (-7) 523 | -10/Mines | Core integrity fell below 50% 571 | -10/Mines | Core integrity fell below 20% 583 | -10/Mines | Lost 4 parts (2n2w) 729 | -10/Mines | Learned Materials terminal intel 734 | -10/Mines | Discovered exit to Materials (range 8) 748 | -10/Mines | Assisted by bots powering up and referring to "LRC-V3" 873 | -10/Mines | Deemed a non-threat by the Exiles lab entrance 874 | -10/Mines | Discovered new exit (range 5) 882 | -10/Mines | Entered Exiles 882 | -10/Exiles | Accompanied by 3 allies 902 | -10/Exiles | Discovered new exit (range 16) 921 | -10/Exiles | Met 8R-AWN 945 | -10/Exiles | Met EX-HEX 977 | -10/Exiles | Met EX-BIN 992 | -10/Exiles | Aligned with FarCom system 993 | -10/Exiles | Given EX-Vault access code 1031 | -10/Exiles | Opened EX-Vault 1039 | -10/Exiles | Found Prototype Energy Cannon 1039 | -10/Exiles | Identified YOLO Cannon 1107 | -10/Exiles | Exiles lab attacked by MAIN.C 1269 | -10/Exiles | Discovered new exit (range 10) 1284 | -10/Exiles | Left Exiles lab with YOLO Cannon 1284 | -10/Exiles | Entered Mines 1286 | -9/Mines | Discovered new exit (range 15) 1309 | -9/Mines | Learned Materials trap positions 1365 | -9/Mines | Learned location of Storage (-8) 1376 | -9/Mines | Discovered new exit (range 8) 1462 | -9/Mines | Assembled infested the area 1462 | -9/Mines | YI-UF0 nonchalantly dropped a Grenade Launcher on the ground 1467 | -9/Mines | Assisted by a Guerilla fighting off Assembled 1527 | -9/Mines | Lost 3 allies 1539 | -9/Mines | Entered Materials 1539 | -8/Materials | Evolved 4 slots: Power x1, Propulsion x1, Utility x2 1540 | -8/Materials | Loaded intel: 11 trap records 1541 | -8/Materials | Loaded intel: 12 terminal locations 1834 | -8/Materials | Build established: Skirmisher 2106 | -8/Materials | Lost 4 parts (1p1n2u) 2666 | -8/Materials | Core integrity fell below 50% 2720 | -8/Materials | Core integrity fell below 20% 2743 | -8/Materials | Destroyed by G-47 Trooper with Particle Gun Last Messages --------------- Critical hit (Burn: +37). Imp. Ion Engine destroyed. Acquired Lgt. Ion Engine. Tractor Beam destroyed. S-10 Pest destroyed. U-05 Engineer builds a Wall. K-01 Serf collects debris. Critical hit (Burn: +37). U-05 Engineer builds a Wall. Kicked G-47 Trooper. G-47 Trooper knocked back. U-05 Engineer builds a Wall. R-06 Scavenger collects Beam Rifle. VSS Leg destroyed. Acquired Lgt. Ion Engine. Lgt. Ion Engine destroyed. K-01 Serf collects debris. R-06 Scavenger collects Flight Unit. Lgt. Ion Engine destroyed. K-01 Serf collects debris. Map ----- +----------------------------------------------------+ | ????????? ##???????????????????????????????????? | | #????????? ##????????????????T??????????????????? | | #????????? ##???????????????????????????????????? | | ##??????? ##???????????????????????????????????? | | ###?????? ##???????????????????????????????????? | | ####????? ##???????????????????????????????????? | | ####???? ##???????????????????????????????????? | | ###???? ##???????????????????????????????????? | | # ###??? ##???????????????????????????????????? | | # ###### ## ## ???????????????????????????? | | ######### #####+### ??????????????????????????? | | ?????????????????????????? | | ?????????????????????????? | | ?????????????????????????? | | ######"############???# ?????????????????????? | | # #################???????????????????? | | ## ##???####### ####???????????????????? | | ## ##???## ##???????????????????? | | ## "#???## !!! ##???????????????????? | | # #" ##???## !!! ##???????????????????? | | # #" ##???## !! ##???????????????????? | | # " ##???## k ##???????????????????? | | #=! ##???## """"" ##???????????????????? | | #%|%! "########???## "" ! ##???????????????????? | | #!" ########???## Y % ##???????????????????? | | #%* ##?????????## [= @g ##???????????????????? | | #! #################r#####???????????????????? | | " ################### # ???????????????????? | | " " # # # ?????????????????????? | | # # # ] # #"?????????????????????? | | # #= !![# %= + #"????????????Y????????? | | # # !! # % #[ # ?????????????????????? | | # + [ # % # # ??????????????? | | # # #""""%######## #####+###??????????????? | | # #######""# ### ##??????????????? | | # % ?????T????? | | ### %% ######??????????? | | ### "##"#####""# ######??????????? | | ?## T## ### ##??????????????? | | ?## ! ]]] "###### #### ##??????????????? | | ?## ]] ##########??? ##??????????????? | | ? ]] # ??? ???? #??????????????? | | ![ # ????????????????????????????? | | [[ # ????????????????????????????? | | #######"T"#T##### ## ????????????????????????????? | | ########### ## ????????????????????????????? | | ????? ########??? ##?????????????????????????????? | | ????????????????? ##?????????????????????????????? | | ?????????????????????????????????????????????????? | | ????????????????????????????????????????????T????? | +----------------------------------------------------+ Best States ------------- Heat Dissipation 31 Energy Generation 17 Energy Capacity 400 Matter Stores 300 Matter Capacity 300 Sight Range 18 Robot Scan Range 15 Terrain Scan Density 10 Armor Coverage 150 Evasion (%) 55 Recoil Reduction 1 Particle Charging 15 Item Schematics ----------------- None Robot Schematics ------------------ None Fabricated ------------ Nothing Alien Tech Used ----------------- None Achievements -------------- None Challenges ------------ None Game ------ Seed AssaultGhostActivator Manual? 0 Play Time 00:28:03 Cumulative 9.9 hours Start 2024.04.06 @ 16:36:42 End 2024.04.06 @ 17:01:22 Sessions 1 Manual Loads 0 Difficulty Rogue Special Mode None Game No. 21 Rogue 21 Adventurer 0 Explorer 0 Win Type - Total 0 Types 0/0/0/0/0/0/0/0/0 Lore% 17 Gallery% 20 Achievement% 15 Wizard Run 0 Options --------- Layout 1 ASCII 0 Keyboard 0 Movement Arrows Keybinds 0 Fullscreen 1 Font 24/Smallcaps Map View 50x35 Zoom Use 0% Tactical HUD 0 Map Filters NONE Filters NONE Steam 1 RUN: 365e5712-615b-437a-8bac-856283d20abd